bitfinex-derivatives/quotes_SOLF0:USTF0_20251026
["timestamp","ask_amount","ask_price","bid_price","bid_amount"]
[1761450047706,3.93416849,192.92,192.85,2.65]
[1761450047905,2.36590726,192.94,192.85,2.65]
[1761450048106,3.93416849,192.93,192.85,2.65]
[1761450048403,3.93416849,192.92,192.85,2.65]
[1761450048604,2.36590726,192.94,192.85,2.65]
[1761450048805,3.9344161,192.93,192.85,2.65]
[1761450048998,3.9344161,192.92,192.85,2.65]
[1761450049196,2.36590726,192.94,192.85,2.65]
[1761450049398,3.93461672,192.93,192.85,2.65]
[1761450049606,3.93461672,192.92,192.85,2.65]
[1761450049808,2.36590726,192.94,192.85,2.65]
[1761450050006,3.93461672,192.93,192.85,2.65]
[1761450050207,3.93461672,192.92,192.85,2.65]
[1761450050406,2.36590726,192.94,192.85,2.65]
[1761450050608,3.93474058,192.93,192.85,2.65]
[1761450050905,3.93474058,192.92,192.85,2.65]
[1761450051103,2.36590726,192.94,192.85,2.65]
[1761450051304,3.93499827,192.93,192.85,2.65]
[1761450051505,3.93499827,192.92,192.85,2.65]
[1761450051697,7.20234627,192.97,192.85,2.65]
[1761450051902,3.93505358,192.96,192.85,2.65]
[1761450052098,3.93505358,192.95,192.85,2.65]
[1761450052303,3.93505358,192.94,192.85,2.65]
[1761450052504,3.93505358,192.93,192.85,2.65]
[1761450052702,3.93505358,192.92,192.85,2.65]
[1761450053004,7.20234627,192.97,192.85,2.65]
[1761450053206,8.77176957,192.96,192.85,2.65]
[1761450053405,3.93533056,192.95,192.85,2.65]
[1761450053613,3.93533056,192.94,192.85,2.65]
[1761450053912,3.93533056,192.93,192.85,2.65]
[1761450054113,3.93533056,192.92,192.85,2.65]
[1761450054311,4.83643901,192.96,192.85,2.65]
[1761450054510,3.93603416,192.95,192.85,2.65]
[1761450054711,3.93603416,192.94,192.85,2.65]
[1761450054912,3.93603416,192.93,192.85,2.65]
[1761450055210,3.93603416,192.92,192.85,2.65]
[1761450055413,4.83643901,192.96,192.85,2.65]
[1761450055607,3.93642389,192.95,192.85,2.65]
[1761450055813,3.93642389,192.94,192.85,2.65]
[1761450056008,3.93642389,192.93,192.85,2.65]
[1761450056208,3.93642389,192.92,192.85,2.65]
[1761450056413,4.83643901,192.96,192.85,2.65]
[1761450056613,3.93685628,192.95,192.85,2.65]
[1761450056814,3.93685628,192.94,192.85,2.65]
[1761450057013,3.93685628,192.93,192.85,2.65]
[1761450057214,3.93685628,192.92,192.85,2.65]
[1761450057415,4.83643901,192.96,192.85,2.65]
[1761450057616,3.93729877,192.95,192.85,2.65]
[1761450057913,3.93729877,192.94,192.85,2.65]
[1761450058113,3.93729877,192.93,192.85,2.65]
[1761450058416,3.93729877,192.92,192.85,2.65]
[1761450058610,3.93729877,192.91,192.85,2.65]
[1761450058804,4.83643901,192.95,192.85,2.65]
[1761450059008,3.93783952,192.94,192.85,2.65]
[1761450059215,3.93783952,192.93,192.85,2.65]
[1761450059414,3.93783952,192.92,192.85,2.65]
[1761450059615,3.93783952,192.91,192.85,2.65]
[1761450059816,4.83643901,192.95,192.85,2.65]
[1761450060009,3.93839363,192.94,192.85,2.65]
[1761450060206,4.35221637,192.96,192.85,2.65]
[1761450060207,3.93839363,192.93,192.85,2.65]
[1761450060412,3.93839363,192.92,192.85,2.65]
[1761450060717,4.84238661,192.96,192.85,2.65]
[1761450060914,3.93895828,192.95,192.85,2.65]
[1761450061114,3.93895828,192.94,192.85,2.65]
[1761450061313,3.93895828,192.93,192.85,2.65]
[1761450061517,3.93895828,192.92,192.85,2.65]
[1761450061711,4.84238661,192.96,192.85,2.65]
[1761450061912,3.93985691,192.95,192.85,2.65]
[1761450062114,3.93985691,192.94,192.85,2.65]
[1761450062314,3.93985691,192.93,192.85,2.65]
[1761450062514,3.93985691,192.92,192.82,2.75]
[1761450062709,4.84238661,192.98,192.85,2.75]
[1761450062914,3.94017673,192.97,192.85,2.75]
[1761450063114,3.94017673,192.96,192.85,2.75]
[1761450063311,3.94017673,192.95,192.85,2.75]
[1761450063514,3.94017673,192.94,192.85,2.75]
[1761450063716,4.84238661,192.98,192.85,2.75]
[1761450064015,3.94062844,192.97,192.88,2.75]
[1761450064221,3.94062844,192.96,192.88,2.75]
[1761450064518,3.94062844,192.95,192.88,2.75]
[1761450064720,4.84238661,193.0,192.88,2.75]
[1761450064920,3.94076383,192.99,192.88,2.75]
[1761450065115,3.94076383,192.98,192.9,2.75]
[1761450065316,3.94076383,192.97,192.9,2.75]
[1761450065615,3.94076383,192.96,192.9,2.75]
[1761450065816,3.94076383,192.95,192.9,2.75]
[1761450066010,4.84238661,193.0,192.91,2.75]
[1761450066212,3.94108347,192.99,192.91,2.75]
[1761450066523,3.94108347,192.98,192.91,2.75]
[1761450066719,3.94108347,192.97,192.91,2.75]
[1761450066920,3.94108347,192.96,192.91,2.75]
[1761450067117,4.84238661,193.0,192.91,2.75]
[1761450067318,3.9428879,192.99,192.91,2.75]
[1761450067518,3.9428879,192.98,192.91,2.75]
[1761450067724,3.9428879,192.97,192.91,2.75]
[1761450067922,3.9428879,192.96,192.91,2.75]
[1761450068124,4.84238661,193.0,192.91,2.75]
[1761450068423,3.93948118,192.99,192.91,2.75]
[1761450068723,3.93948118,192.98,192.91,2.75]
[1761450068921,3.93948118,192.97,192.91,2.75]
[1761450069121,3.93948118,192.96,192.91,2.75]
[1761450069322,4.84238661,193.0,192.91,2.75]
[1761450069523,3.93829123,192.99,192.91,2.75]
[1761450069724,3.93829123,192.98,192.91,2.75]
[1761450069926,3.93829123,192.97,192.91,2.75]
[1761450070123,3.93829123,192.96,192.91,2.75]
[1761450070319,4.84238661,193.0,192.91,2.75]
[1761450070519,3.93775886,192.99,192.91,2.75]
[1761450070716,3.93775886,192.98,192.91,2.75]
[1761450070926,3.93775886,192.97,192.91,2.75]
[1761450071126,3.93775886,192.96,192.91,2.75]
[1761450071329,4.84238661,193.0,192.91,2.75]
[1761450071627,3.93730236,192.99,192.91,2.75]
[1761450071926,3.93730236,192.98,192.91,2.75]
[1761450072121,3.93730236,192.97,192.91,2.75]
[1761450072322,3.93730236,192.96,192.91,2.75]
[1761450072626,4.84238661,193.0,192.91,2.75]
[1761450072916,3.93691356,192.99,192.91,2.75]
[1761450073123,3.93691356,192.98,192.91,2.75]
[1761450073427,6.30282082,192.97,192.84,2.69]
[1761450073729,3.93691356,192.96,192.84,2.69]
[1761450073928,3.93691356,192.95,192.84,2.69]
[1761450074129,3.93691356,192.94,192.84,2.69]
[1761450074316,2.36590726,192.97,192.84,2.69]
[1761450074519,3.93671495,192.96,192.84,2.69]
[1761450074716,3.93671495,192.95,192.84,2.69]
[1761450074920,2.36590726,192.97,192.84,2.69]
[1761450075124,3.93666305,192.96,192.87,2.69]
[1761450075416,3.93666305,192.95,192.87,2.69]
[1761450075621,2.36590726,192.97,192.87,2.69]
[1761450075821,3.93650352,192.96,192.87,2.69]
[1761450076024,3.93650352,192.95,192.87,2.69]
[1761450076220,2.36590726,192.97,192.87,2.69]
[1761450076420,3.9363593,192.96,192.87,2.69]
[1761450076616,3.9363593,192.95,192.87,2.69]
[1761450076828,1.51315785,192.93,192.87,2.69]
[1761450082434,1.51315785,192.95,192.87,2.69]
[1761450082737,3.93646292,192.94,192.87,2.69]
[1761450082929,1.51315785,192.95,192.87,2.69]
[1761450083236,3.93646354,192.94,192.87,2.69]
[1761450083437,1.51315785,192.95,192.87,2.69]
[1761450083737,3.93651046,192.94,192.87,2.69]
[1761450083939,1.51315785,192.95,192.87,2.69]
[1761450084137,3.93651046,192.94,192.87,2.69]
[1761450084334,1.51315785,192.95,192.87,2.69]
[1761450084534,3.93656718,192.94,192.87,2.69]
[1761450084736,1.51315785,192.95,192.87,2.69]
[1761450085034,3.93656718,192.94,192.87,2.69]
[1761450085229,1.51315785,192.95,192.87,2.69]
[1761450085429,3.93663312,192.94,192.87,2.69]
[1761450085638,1.51315785,192.95,192.87,2.69]
[1761450085837,3.93663312,192.94,192.87,2.69]
[1761450086134,1.51315785,192.95,192.87,2.69]
[1761450086331,3.93657661,192.94,192.87,2.69]
[1761450086537,1.51315785,192.95,192.87,2.69]
[1761450086737,3.93670797,192.94,192.87,2.69]
[1761450086938,1.51315785,192.95,192.87,2.69]
[1761450087138,3.93670797,192.94,192.87,2.69]
[1761450087337,1.51315785,192.95,192.87,2.69]
[1761450087537,3.93679231,192.94,192.87,2.69]
[1761450087735,1.51315785,192.95,192.87,2.69]
[1761450087936,3.93679231,192.94,192.87,2.69]
[1761450088235,1.51315785,192.95,192.87,2.69]
[1761450088437,3.93684257,192.94,192.87,2.69]
[1761450088638,1.51315785,192.95,192.87,2.69]
[1761450088839,3.93684257,192.94,192.87,2.69]
[1761450089037,1.51315785,192.95,192.87,2.69]
[1761450089238,3.93684257,192.94,192.87,2.69]
[1761450089438,1.51315785,192.95,192.87,2.69]
[1761450089737,3.93702285,192.94,192.87,2.69]
[1761450090036,1.51315785,192.95,192.87,2.69]
[1761450090237,3.93702285,192.94,192.87,2.69]
[1761450090440,1.51315785,192.95,192.88,2.69]
[1761450090629,3.93713192,192.94,192.88,2.69]
[1761450090832,1.51315785,192.95,192.88,2.69]
[1761450091030,3.93713192,192.94,192.88,2.69]
[1761450091239,1.51315785,192.95,192.88,2.69]
[1761450091442,3.937254,192.94,192.88,2.69]
[1761450091744,1.51315785,192.95,192.88,2.69]
[1761450092039,3.937254,192.94,192.88,2.69]
[1761450092240,1.51315785,192.95,192.88,2.69]
[1761450092440,3.93738784,192.94,192.88,2.69]
[1761450092642,1.51315785,192.95,192.88,2.69]
[1761450092848,3.93738784,192.94,192.88,2.69]
[1761450093033,1.51315785,192.95,192.88,2.69]
[1761450093233,3.93745418,192.94,192.88,2.69]
[1761450093532,1.51315785,192.95,192.88,2.69]
[1761450093735,3.93757988,192.94,192.88,2.69]
[1761450093938,1.51315785,192.95,192.88,2.69]
[1761450094246,3.93757988,192.94,192.88,2.69]
[1761450094434,1.51315785,192.95,192.88,2.69]
[1761450096844,3.93814656,192.94,192.88,2.69]
[1761450097044,1.51315785,192.95,192.88,2.69]
[1761450097244,3.93838407,192.94,192.88,2.69]
[1761450097444,1.51315785,192.95,192.88,2.69]
[1761450097645,3.93849779,192.94,192.88,2.69]
[1761450097845,1.51315785,192.95,192.88,2.69]
[1761450098144,3.93382324,192.94,192.88,2.69]
[1761450098347,1.51315785,192.95,192.88,2.69]
[1761450098546,3.93428221,192.94,192.88,2.69]
[1761450098845,1.51315785,192.95,192.88,2.69]
[1761450099045,3.93428493,192.94,192.88,2.69]
[1761450099245,3.93482483,192.93,192.88,2.69]
[1761450099547,1.51315785,192.95,192.88,2.69]
[1761450099845,3.93482619,192.94,192.88,2.69]
[1761450100046,3.93482619,192.93,192.88,2.69]
[1761450100235,1.51315785,192.95,192.88,2.69]
[1761450100440,3.93534183,192.94,192.88,2.69]
[1761450100646,3.93534183,192.93,192.88,2.69]
[1761450100836,1.51315785,192.95,192.88,2.69]
[1761450101040,3.93539785,192.94,192.88,2.69]
[1761450101245,1.51315785,192.95,192.88,2.69]
[1761450101246,3.93539785,192.93,192.88,2.69]
[1761450101442,1.51315785,192.95,192.88,2.69]
[1761450101642,3.93588994,192.94,192.88,2.69]
[1761450101843,3.93588994,192.93,192.88,2.69]
[1761450102144,1.51315785,192.95,192.88,2.69]
[1761450102343,3.9364273,192.94,192.88,2.69]
[1761450102637,1.51315785,192.95,192.74,10.24000772]
[1761450102638,1.51315785,192.92,192.84,2.69]
[1761450102843,3.9364273,192.91,192.84,2.69]
[1761450103036,3.9364273,192.9,192.84,2.69]
[1761450103236,1.51315785,192.92,192.84,2.69]
[1761450103437,3.9367496,192.91,192.84,2.69]
[1761450103640,3.9367496,192.9,192.84,2.69]
[1761450103946,1.51315785,192.92,192.84,2.69]
[1761450104143,3.93675025,192.91,192.84,2.69]
[1761450104345,3.93675025,192.9,192.84,2.69]
[1761450104548,1.51315785,192.92,192.84,2.69]
[1761450104749,3.93679587,192.91,192.84,2.69]
[1761450105046,3.93679587,192.9,192.84,2.69]
[1761450105247,1.51315785,192.92,192.84,2.69]
[1761450105449,3.93613665,192.91,192.84,2.69]
[1761450105642,3.93613665,192.9,192.84,2.69]
[1761450105837,1.51315785,192.92,192.84,2.69]
[1761450106042,3.93613536,192.91,192.84,2.69]
[1761450106347,3.93613536,192.9,192.84,2.69]
[1761450106649,1.51315785,192.92,192.84,2.69]
[1761450106850,3.93589747,192.91,192.84,2.69]
[1761450107149,3.93589747,192.9,192.84,2.69]
[1761450107344,1.51315785,192.92,192.84,2.69]
[1761450107546,3.93545234,192.91,192.84,2.69]
[1761450107849,3.93545234,192.9,192.84,2.69]
[1761450108147,1.51315785,192.92,192.84,2.69]
[1761450108347,3.9353529,192.91,192.84,2.69]
[1761450108548,3.9353529,192.9,192.84,2.69]
[1761450108750,1.51315785,192.92,192.84,2.69]
[1761450108950,3.93476555,192.91,192.84,2.69]
[1761450109144,3.93476555,192.9,192.84,2.69]
[1761450109345,1.51315785,192.92,192.84,2.69]
[1761450109544,3.93421433,192.91,192.84,2.69]
[1761450109746,3.93421433,192.9,192.84,2.69]
[1761450109951,1.51315785,192.92,192.84,2.69]
[1761450110150,3.93421433,192.91,192.84,2.69]
[1761450110352,3.93421433,192.9,192.84,2.69]
[1761450110552,1.51315785,192.92,192.84,2.69]
[1761450110754,3.93377349,192.91,192.84,2.69]
[1761450110944,3.93377349,192.9,192.84,2.69]
[1761450111144,1.51315785,192.92,192.84,2.69]
[1761450111451,3.93377349,192.91,192.84,2.69]
[1761450111749,3.93377349,192.9,192.84,2.69]
[1761450111949,1.51315785,192.92,192.84,2.69]
[1761450112144,3.93350274,192.91,192.79,2.69]
[1761450112351,1.51315785,192.89,192.78,2.69]
[1761450112653,3.93350274,192.88,192.78,2.69]
[1761450112853,3.93350274,192.87,192.78,2.69]
[1761450113150,1.51315785,192.89,192.78,2.69]
[1761450113350,3.9335094,192.88,192.78,2.69]
[1761450113548,3.9335094,192.87,192.78,2.69]
[1761450113744,1.51315785,192.89,192.78,2.69]
[1761450113941,3.93217246,192.88,192.78,2.69]
[1761450114151,3.93217246,192.87,192.78,2.69]
[1761450114451,1.51315785,192.89,192.78,2.69]
[1761450114649,3.93107993,192.88,192.78,2.69]
[1761450114852,1.51315785,192.86,192.78,2.69]
[1761450119650,1.51315785,192.89,192.78,2.69]
[1761450119952,1.51315785,192.89,192.79,2.69]
[1761450123158,3.92647138,192.88,192.79,2.69]
[1761450123361,1.51315785,192.89,192.79,2.69]
[1761450131265,1.51315785,192.89,192.79,4.20315785]
[1761450131460,3.9251133,192.88,192.8,2.84]
[1761450132060,1.51315785,192.89,192.8,2.84]
[1761450132261,3.92510205,192.88,192.8,2.84]
[1761450132761,1.51315785,192.89,192.8,2.84]
[1761450133867,3.92534091,192.88,192.8,2.84]
[1761450134163,1.51315785,192.89,192.8,2.84]
[1761450134370,3.92556965,192.88,192.8,2.84]
[1761450134569,1.51315785,192.89,192.8,2.84]
[1761450134767,3.92556965,192.88,192.8,2.84]
[1761450134967,1.51315785,192.89,192.8,2.84]
[1761450135566,3.92585363,192.88,192.8,2.84]
[1761450135770,1.51315785,192.89,192.8,2.84]
[1761450136068,3.92585633,192.88,192.8,2.84]
[1761450136267,1.51315785,192.89,192.8,2.84]
[1761450136469,3.92612225,192.88,192.8,2.84]
[1761450136671,2.36601062,192.92,192.8,2.84]
[1761450136859,3.92612225,192.91,192.8,2.84]
[1761450137065,3.92612225,192.9,192.8,2.84]
[1761450137268,3.92612225,192.89,192.8,2.84]
[1761450137466,3.92612225,192.88,192.8,2.84]
[1761450137667,2.36601062,192.92,192.8,2.84]
[1761450137871,3.92656155,192.91,192.8,2.84]
[1761450138171,3.92656155,192.9,192.8,2.84]
[1761450138372,7.20645658,192.92,192.8,2.84]
[1761450138373,3.92656155,192.89,192.8,2.84]
[1761450138569,3.92656155,192.88,192.8,2.84]
[1761450138766,3.92656155,192.87,192.8,2.84]
[1761450138972,7.20645658,192.92,192.8,2.84]
[1761450139167,3.92701086,192.91,192.8,2.84]
[1761450139366,3.92701086,192.9,192.8,2.84]
[1761450139568,3.92701086,192.89,192.8,2.84]
[1761450139768,3.92701086,192.88,192.8,2.84]
[1761450139969,3.92701086,192.87,192.8,2.84]
[1761450140171,7.20645658,192.92,192.8,2.84]
[1761450140470,3.92829976,192.91,192.8,2.84]
[1761450140670,3.92829976,192.9,192.8,2.84]
[1761450140871,3.92829976,192.89,192.8,2.84]
[1761450141175,3.92829976,192.88,192.8,2.84]
[1761450141376,3.92829976,192.87,192.8,2.84]
[1761450141574,4.84044596,192.91,192.8,2.84]
[1761450141775,3.92932208,192.9,192.8,2.84]
[1761450141974,3.92932208,192.89,192.8,2.84]
[1761450142274,3.92932208,192.88,192.8,2.84]
[1761450142474,3.92932208,192.87,192.8,2.84]
[1761450142676,4.84044596,192.91,192.8,2.84]
[1761450142866,3.93030822,192.9,192.8,2.84]
[1761450143069,3.93030822,192.89,192.8,2.84]
[1761450143266,3.93030822,192.88,192.8,2.84]
[1761450143464,3.93030822,192.87,192.8,2.84]
[1761450143676,3.93030822,192.86,192.8,2.84]
[1761450143866,4.84044596,192.91,192.8,2.84]
[1761450144068,3.93129575,192.9,192.8,2.84]
[1761450144279,3.93129575,192.89,192.8,2.84]
[1761450144577,3.93129575,192.88,192.8,2.84]
[1761450144778,3.93129575,192.87,192.8,2.84]
[1761450144980,3.93129575,192.86,192.8,2.84]
[1761450145179,4.84044596,192.9,192.8,2.84]
[1761450145384,3.93323359,192.89,192.8,2.84]
[1761450145587,3.93323359,192.88,192.8,2.84]
[1761450145885,3.93323359,192.87,192.8,2.84]
[1761450146087,3.93323359,192.86,192.8,2.84]
[1761450146387,4.84044596,192.9,192.8,2.84]
[1761450146688,3.93439413,192.89,192.8,2.84]
[1761450146884,3.93439413,192.88,192.8,2.84]
[1761450147086,3.93439413,192.87,192.8,2.84]
[1761450147293,3.93439413,192.86,192.8,2.84]
[1761450147482,3.93439413,192.85,192.8,2.84]
[1761450147781,4.84044596,192.9,192.8,2.84]
[1761450147983,3.93581045,192.89,192.8,2.84]
[1761450148188,3.93581045,192.88,192.8,2.84]
[1761450148383,3.93581045,192.87,192.8,2.84]
[1761450148580,3.93581045,192.86,192.8,2.84]
[1761450148785,3.93581045,192.85,192.8,2.84]
[1761450148986,4.84044596,192.9,192.8,2.84]
[1761450149189,3.93617853,192.89,192.8,2.84]
[1761450149390,3.93617853,192.88,192.8,2.84]
[1761450149581,3.93617853,192.87,192.8,2.84]
[1761450149777,3.93617853,192.86,192.8,2.84]
[1761450150082,4.84044596,192.9,192.8,2.84]
[1761450150279,3.93654064,192.89,192.8,2.84]
[1761450150482,3.93654064,192.88,192.8,2.84]
[1761450150688,3.93654064,192.87,192.8,2.84]
[1761450150882,3.93654064,192.86,192.8,2.84]
[1761450151085,4.84044596,192.9,192.8,2.84]
[1761450151284,3.93704494,192.89,192.8,2.84]
[1761450151488,3.93704494,192.88,192.8,2.84]
[1761450151684,3.93704494,192.87,192.8,2.84]
[1761450151880,3.93704494,192.86,192.8,2.84]
[1761450152085,4.84044596,192.9,192.8,2.84]
[1761450152086,3.93704494,192.85,192.8,2.84]
[1761450152287,4.84044596,192.9,192.8,2.84]
[1761450152489,3.93809388,192.89,192.8,2.84]
[1761450152690,3.93809388,192.88,192.8,2.84]
[1761450152988,3.93809388,192.87,192.8,2.84]
[1761450153191,3.93809388,192.86,192.8,2.84]
[1761450153388,4.84044596,192.9,192.8,2.84]
[1761450153579,3.93862839,192.89,192.8,2.84]
[1761450153787,3.93862839,192.88,192.8,2.84]
[1761450153986,3.93862839,192.87,192.8,2.84]
[1761450154187,3.93862839,192.86,192.8,2.84]
[1761450154386,3.93862839,192.85,192.8,2.84]
[1761450154586,6.46519271,192.92,192.8,2.84]
[1761450154786,4.85249717,192.9,192.8,2.84]
[1761450154993,3.93938764,192.89,192.8,2.84]
[1761450155292,3.93938764,192.88,192.8,2.84]
[1761450155493,3.93938764,192.87,192.8,2.84]
[1761450155797,3.93938764,192.86,192.8,2.84]
[1761450156093,3.93938764,192.85,192.8,2.84]
[1761450156292,4.85249717,192.89,192.8,2.84]
[1761450156492,3.94150784,192.88,192.8,2.84]
[1761450156695,3.94150784,192.87,192.8,2.84]
[1761450156893,3.94150784,192.86,192.8,2.84]
[1761450157088,3.94150784,192.85,192.8,2.84]
[1761450157289,4.85249717,192.89,192.8,2.84]
[1761450157490,3.94191608,192.88,192.8,2.84]
[1761450157688,3.94191608,192.87,192.8,2.84]
[1761450157887,3.94191608,192.86,192.8,2.84]
[1761450158089,3.94191608,192.85,192.8,2.84]
[1761450158290,4.85249717,192.89,192.8,2.84]
[1761450158494,3.93546267,192.88,192.8,2.84]
[1761450158689,3.93546267,192.87,192.8,2.84]
[1761450158888,3.93546267,192.86,192.8,2.84]
[1761450159192,4.85249717,192.89,192.8,2.84]
[1761450159193,3.93546267,192.85,192.8,2.84]
[1761450159393,4.85249717,192.89,192.8,2.84]
[1761450159593,3.93546577,192.88,192.8,2.84]
[1761450159892,3.93546577,192.87,192.8,2.84]
[1761450160091,3.93546577,192.86,192.8,2.84]
[1761450160292,3.93546577,192.85,192.8,2.84]
[1761450160495,4.85561872,192.89,192.8,2.84]
[1761450160694,3.93547863,192.88,192.8,2.84]
[1761450160996,3.93547863,192.87,192.8,2.84]
[1761450161195,3.93547863,192.86,192.8,2.84]
[1761450161494,3.93547863,192.85,192.8,2.84]
[1761450161795,4.85561872,192.89,192.8,2.84]
[1761450161991,3.93549226,192.88,192.8,2.84]
[1761450162187,3.93549226,192.87,192.8,2.84]
[1761450162386,3.93549226,192.86,192.8,2.84]
[1761450162689,3.93549226,192.85,192.8,2.84]
[1761450162893,4.85561872,192.89,192.8,2.84]
[1761450163094,3.93550423,192.88,192.8,2.84]
[1761450163294,3.93550423,192.87,192.8,2.84]
[1761450163494,3.93550423,192.86,192.8,2.84]
[1761450163693,3.93550423,192.85,192.8,2.84]
[1761450163992,4.85561872,192.89,192.8,2.84]
[1761450164193,3.9355042,192.88,192.8,2.84]
[1761450164398,3.9355042,192.87,192.8,2.84]
[1761450164598,3.9355042,192.86,192.8,2.84]
[1761450164896,3.9355042,192.85,192.8,2.84]
[1761450165086,4.85561872,192.89,192.8,2.84]
[1761450165287,3.93557295,192.88,192.8,2.84]
[1761450165490,3.93557295,192.87,192.8,2.84]
[1761450165695,3.93557295,192.86,192.8,2.84]
[1761450165897,3.93557295,192.85,192.8,2.84]
[1761450166098,4.85561872,192.89,192.8,2.84]
[1761450166290,3.93563026,192.88,192.8,2.84]
[1761450166493,3.93563026,192.87,192.8,2.84]
[1761450166691,3.93563026,192.86,192.8,2.84]
[1761450166893,3.93563026,192.85,192.8,2.84]
[1761450167100,4.85561872,192.89,192.8,2.84]
[1761450167303,3.9356904,192.88,192.8,2.84]
[1761450167599,3.9356904,192.87,192.8,2.84]
[1761450167799,3.9356904,192.86,192.8,2.84]
[1761450168001,3.9356904,192.85,192.8,2.84]
[1761450168200,4.85561872,192.89,192.8,2.84]
[1761450168400,3.9358074,192.88,192.8,2.84]
[1761450168605,3.9358074,192.87,192.8,2.84]
[1761450168802,3.9358074,192.86,192.8,2.84]
[1761450169001,3.9358074,192.85,192.8,2.84]
[1761450169201,3.9358074,192.84,192.8,2.84]
[1761450169402,4.85561872,192.88,192.8,2.84]
[1761450169595,3.93611888,192.87,192.8,2.84]
[1761450169795,3.93611888,192.86,192.8,2.84]
[1761450170001,3.93611888,192.85,192.8,2.84]
[1761450170204,3.93611888,192.84,192.8,2.84]
[1761450170403,3.93611888,192.83,192.8,2.84]
[1761450170604,4.85561872,192.88,192.8,2.84]
[1761450170794,3.93593385,192.87,192.8,2.84]
[1761450171001,3.93593385,192.86,192.8,2.84]
[1761450171202,3.93593385,192.85,192.8,2.84]
[1761450171401,3.93593385,192.84,192.8,2.84]
[1761450171602,3.93593385,192.83,192.8,2.84]
[1761450171797,4.85561872,192.87,192.8,2.84]
[1761450171994,3.93586085,192.86,192.8,2.84]
[1761450172199,3.93586085,192.85,192.8,2.84]
[1761450172400,3.93586085,192.84,192.8,2.84]
[1761450172601,3.93586085,192.83,192.8,2.84]
[1761450172806,4.85561872,192.87,192.8,2.84]
[1761450173004,3.93540628,192.86,192.8,2.84]
[1761450173305,3.93540628,192.85,192.8,2.84]
[1761450173506,3.93540628,192.84,192.8,2.84]
[1761450173698,3.93540628,192.83,192.8,2.84]
[1761450173898,4.85561872,192.87,192.8,2.84]
[1761450174105,3.9349968,192.86,192.8,2.84]
[1761450174405,3.9349968,192.85,192.8,2.84]
[1761450174605,3.9349968,192.84,192.8,2.84]
[1761450174802,3.9349968,192.83,192.8,2.84]
[1761450174998,3.9349968,192.82,192.75,2.77]
[1761450175304,3.93446874,192.81,192.75,2.77]
[1761450175495,7.22162934,192.86,192.75,2.77]
[1761450175697,3.93436071,192.85,192.75,2.77]
[1761450175904,3.93436071,192.84,192.75,2.77]
[1761450176105,3.93436071,192.83,192.75,2.77]
[1761450176304,3.93436071,192.82,192.75,2.77]
[1761450176515,7.22162934,192.86,192.75,2.77]
[1761450176704,3.93371163,192.85,192.75,2.77]
[1761450176904,3.93371163,192.84,192.75,2.77]
[1761450177105,3.93371163,192.83,192.75,2.77]
[1761450177301,3.93371163,192.82,192.75,2.77]
[1761450177497,3.93371163,192.81,192.71,2.77]
[1761450177702,3.93371163,192.8,192.71,2.77]
[1761450177905,3.93371163,192.79,192.71,2.77]
[1761450178106,3.93371163,192.78,192.71,2.77]
[1761450178308,3.93093621,192.77,192.71,2.77]
[1761450178506,2.36601062,192.8,192.71,2.77]
[1761450178805,3.93104753,192.79,192.71,2.77]
[1761450179004,4.85561872,192.85,192.71,2.77]
[1761450179201,3.93015329,192.84,192.74,2.77]
[1761450179401,3.93015329,192.83,192.74,2.77]